fUSD/lending_fUSD_20240212
["ID","MTS","AMOUNT","RATE_DAILY","PERIOD"]
[313772811,1707711377660,8934.82,0.00022996,2]
[313772812,1707711377976,561.84,0.00022996,2]
[313772813,1707711378072,3363.38,0.00022997,2]
[313772814,1707711378221,500.0,0.00022996,2]
[313772815,1707711378893,500.0,0.00022996,2]
[313772816,1707711379302,500.0,0.00022998,2]
[313772817,1707711379678,548.11,0.00022999,2]
[313772818,1707711379773,500.0,0.00022999,2]
[313772819,1707711379951,500.0,0.00022996,2]
[313772820,1707711380862,500.0,0.00022996,2]
[313772821,1707711381272,500.0,0.00022999,2]
[313772822,1707711381300,500.0,0.00022998,2]
[313772823,1707711382442,500.0,0.00022999,2]
[313772824,1707711384350,701.34,0.00022997,2]
[313772825,1707711384380,500.0,0.00022996,2]
[313772826,1707711384553,520.92431865,0.00022998,2]
[313772827,1707711385109,500.0,0.00022998,2]
[313772828,1707711385377,623.15,0.00022998,2]
[313772829,1707711385980,528.04602521,0.00022996,2]
[313772830,1707711386310,500.0,0.00022999,2]
[313772831,1707711387302,500.0,0.00022996,2]
[313772832,1707711387483,611.90119929,0.00022999,2]
[313772833,1707711387521,500.0,0.00022996,2]
[313772834,1707711387570,500.0,0.00022997,2]
[313772835,1707711387609,1663.48,0.00022997,2]
[313772836,1707711387850,544.95,0.00022996,2]
[313772837,1707711388720,500.0,0.00022998,2]
[313772838,1707711389481,500.0,0.00022996,2]
[313772839,1707711390476,841.11,0.00022996,2]
[313772840,1707711391199,500.0,0.00022998,2]
[313772841,1707711392518,500.0,0.00022999,2]
[313772842,1707711392719,1824.07,0.00022999,2]
[313772843,1707711393422,500.0,0.00022998,2]
[313772844,1707711393451,500.0,0.00022996,2]
[313772845,1707711394105,289.69068878,0.00022999,2]
[313772846,1707711395512,1055.12,0.00022997,2]
[313772847,1707711395574,500.0,0.00022998,2]
[313772848,1707711396673,500.0,0.00022996,2]
[313772849,1707711396831,500.0,0.00022997,2]
[313772850,1707711396942,3378.53,0.00022996,2]
[313772851,1707711397124,500.0,0.00022997,2]
[313772852,1707711397722,3966.98,0.00022997,2]
[313772853,1707711398820,2692.91,0.00022997,2]
[313772854,1707711399410,2827.4,0.00022996,2]
[313772855,1707711399535,500.0,0.00022999,2]
[313772856,1707711399900,500.0,0.00022998,2]
[313772857,1707711400046,545.0,0.00022996,2]
[313772858,1707711400269,541.03,0.00022996,2]
[313772859,1707711400355,805.9,0.00022996,2]
[313772860,1707711400433,500.0,0.00022999,2]
[313772861,1707711400684,1588.63,0.00022997,2]
[313772862,1707711402427,607.17661814,0.00022999,2]
[313772863,1707711403433,626.70184603,0.00022996,2]
[313772864,1707711404254,2267.94,0.00022997,2]
[313772865,1707711404386,1241.24,0.00022998,2]
[313772866,1707711404667,500.0,0.00022996,2]
[313772867,1707711405417,500.0,0.00022996,2]
[313772868,1707711405679,500.0,0.00022998,2]
[313772869,1707711405734,500.0,0.00022998,2]
[313772870,1707711405768,500.0,0.00022996,2]
[313772871,1707711406246,500.27,0.00022999,2]
[313772872,1707711407310,618.07,0.00022996,2]
[313772873,1707711407970,500.0,0.00022996,2]
[313772874,1707711408555,3853.83,0.00022996,2]
[313772875,1707711409820,500.0,0.00022996,2]
[313772876,1707711410126,605.46,0.00022997,2]
[313772877,1707711411600,500.0,0.00022999,2]
[313772878,1707711412525,587.04,0.00022997,2]
[313772879,1707711412626,500.0,0.00022996,2]
[313772880,1707711413122,609.13,0.00022996,2]
[313772881,1707711413289,500.0,0.00022997,2]
[313772882,1707711414124,500.0,0.00022998,2]
[313772883,1707711414405,572.51,0.00022996,2]
[313772884,1707711414450,500.0,0.00022996,2]
[313772885,1707711415009,507.08342659,0.00022999,2]
[313772886,1707711415038,500.0,0.00022999,2]
[313772887,1707711415904,512.47,0.00022998,2]
[313772888,1707711416710,500.0,0.00022996,2]
[313772889,1707711417791,500.0,0.00022996,2]
[313772890,1707711418144,500.0,0.00022998,2]
[313772891,1707711418178,500.0,0.00022997,2]
[313772892,1707711419606,530.05190827,0.00022998,2]
[313772893,1707711419971,489.09479574,0.00022996,2]
[313772894,1707711420711,1000.0,0.00022998,2]
[313772895,1707711420748,500.0,0.00022996,2]
[313772896,1707711420939,500.0,0.00022998,2]
[313772897,1707711421450,1268.17,0.00022997,2]
[313772898,1707711421721,500.0,0.00022999,2]
[313772899,1707711422055,500.0,0.00022996,2]
[313772900,1707711423296,500.0,0.00022998,2]
[313772901,1707711423358,500.0,0.00022996,2]
[313772902,1707711423581,275.82992844,0.00022999,2]
[313772903,1707711423997,193.82650138,0.00022996,2]
[313772904,1707711424030,1019.17,0.00022996,2]
[313772905,1707711425363,2190.13,0.00022997,2]
[313772906,1707711425764,500.0,0.00022998,2]
[313772907,1707711426088,670.22,0.00022998,2]
[313772908,1707711426394,542.12839301,0.00022996,2]
[313772909,1707711427163,500.0,0.00022996,2]
[313772910,1707711427830,646.62,0.00022996,2]
[313772911,1707711428244,882.13,0.00022996,2]
[313772912,1707711428643,1000.0,0.00023,2]
[313772913,1707711429465,500.0,0.00022998,2]
[313772914,1707711429583,500.0,0.00022998,2]
[313772915,1707711432356,500.0,0.00022996,2]
[313772916,1707711432396,500.0,0.00022996,2]
[313772917,1707711433291,500.0,0.00022998,2]
[313772918,1707711434021,894.07,0.00022996,2]
[313772919,1707711434421,150.01,0.00022999,2]
[313772920,1707711434684,302.4,0.00022402,2]
[313772921,1707711434934,662.73647544,0.00022999,2]
[313772922,1707711435059,2543.8772,0.00022896,2]
[313772923,1707711435209,549.67,0.00022998,2]
[313772924,1707711435237,500.0,0.00022997,2]
[313772925,1707711435589,500.0,0.00022999,2]
[313772926,1707711436369,500.0,0.00022996,2]
[313772927,1707711436751,500.0,0.00022996,2]
[313772928,1707711437150,2683.78,0.00022996,2]
[313772929,1707711437445,5494.22,0.00022997,2]
[313772930,1707711438237,500.0,0.00022996,2]
[313772931,1707711438428,150.0,0.00022996,2]
[313772932,1707711438463,150.0,0.00022935,2]
[313772933,1707711438510,150.0,0.00022875,2]
[313772934,1707711438539,153.16539538,0.00022763,2]
[313772935,1707711438573,150.0,0.00022887,2]
[313772936,1707711438605,150.0,0.00022981,2]
[313772937,1707711438638,150.0,0.0002289,2]
[313772938,1707711438670,150.0,0.00022981,2]
[313772939,1707711438726,150.0,0.00022859,2]
[313772940,1707711438754,150.0,0.00022924,2]
[313772941,1707711438783,1500.0,0.00022849,2]
[313772942,1707711438813,150.0,0.00022857,2]
[313772943,1707711438876,150.0,0.00022906,2]
[313772944,1707711438908,162.07065933,0.00022983,2]
[313772945,1707711438948,150.0,0.00022861,2]
[313772946,1707711438980,930.58431655,0.00022946,2]
[313772947,1707711439008,150.0,0.00022764,2]
[313772948,1707711439049,150.0,0.00022933,2]
[313772949,1707711439085,150.0,0.00022934,2]
[313772950,1707711439114,150.0,0.00022864,2]
[313772951,1707711439141,150.0,0.00022954,2]
[313772952,1707711439175,150.0,0.00022839,2]
[313772953,1707711439207,150.0,0.00022875,2]
[313772954,1707711439235,500.0,0.00022998,2]
[313772955,1707711439268,150.0,0.00022899,2]
[313772956,1707711439297,150.0,0.00022857,2]
[313772957,1707711439328,150.0,0.00022859,2]
[313772958,1707711439366,150.0,0.00022995,2]
[313772959,1707711439404,150.0,0.00022932,2]
[313772960,1707711439454,150.0,0.00022882,2]
[313772961,1707711439482,150.0,0.00022832,2]
[313772962,1707711439524,150.0,0.00022816,2]
[313772963,1707711439568,150.0,0.00022913,2]
[313772964,1707711439606,150.0,0.00022924,2]
[313772965,1707711439637,150.0,0.00023,2]
[313772966,1707711439667,150.0,0.00022846,2]
[313772967,1707711439733,150.0,0.00022856,2]
[313772968,1707711439777,500.0,0.00022996,2]
[313772969,1707711439821,150.0,0.00022884,2]
[313772970,1707711439858,150.0,0.00022987,2]
[313772971,1707711439906,150.0,0.00022897,2]
[313772972,1707711439936,150.0,0.00022815,2]
[313772973,1707711439973,150.0,0.00022742,2]
[313772974,1707711440009,150.0,0.00022979,2]
[313772975,1707711440037,150.0,0.00022807,2]
[313772976,1707711440074,150.0,0.00022856,2]
[313772977,1707711440292,150.0,0.00022755,2]
[313772978,1707711440395,150.0,0.00022925,2]
[313772979,1707711440456,150.0,0.00022801,2]
[313772980,1707711440484,530.18918035,0.00022999,2]
[313772981,1707711440513,150.0,0.00022827,2]
[313772982,1707711440541,150.0,0.00022768,2]
[313772983,1707711440581,150.0,0.00022807,2]
[313772984,1707711440651,150.0,0.00022767,2]
[313772985,1707711440922,150.0,0.000228,2]
[313772986,1707711441057,3775.16742986,0.00022945,2]
[313772987,1707711441707,242.51325085,0.00022945,2]
[313772988,1707711441744,500.0,0.00022996,2]
[313772989,1707711442502,500.0,0.00022996,2]
[313772990,1707711442645,500.0,0.00022996,2]
[313772991,1707711443121,500.0,0.00022997,2]
[313772992,1707711443246,500.0,0.00022999,2]
[313772993,1707711443981,500.0,0.00022997,2]
[313772994,1707711444602,424.15134428,0.00022999,2]
[313772995,1707711444973,500.0,0.00022996,2]
[313772996,1707711445008,7199.11,0.00022996,2]
[313772997,1707711446054,190.66,0.00022411,2]
[313772998,1707711446175,150.0,0.00023,2]
[313772999,1707711446247,583.9,0.00022996,2]
[313773000,1707711446311,2495.25,0.00022997,2]
[313773001,1707711447811,500.0,0.00022999,2]
[313773002,1707711448303,500.0,0.00022996,2]
[313773003,1707711448720,677.65,0.00022996,2]
[313773004,1707711449212,526.18847654,0.00022996,2]
[313773005,1707711449275,300.0,0.000229,8]
[313773006,1707711449573,339.32107542,0.00022999,2]
[313773007,1707711449671,733.59,0.00022996,2]
[313773008,1707711450009,1190.04,0.00022998,2]
[313773009,1707711450039,500.0,0.00022999,2]
[313773010,1707711450680,500.0,0.00022996,2]
[313773011,1707711452598,573.98,0.00022996,2]
[313773012,1707711452728,1814.77,0.00022997,2]
[313773013,1707711453054,500.0,0.00022998,2]
[313773014,1707711454334,500.0,0.00022997,2]
[313773015,1707711454363,500.0,0.00022996,2]
[313773016,1707711454548,630.98,0.00022996,2]
[313773017,1707711454649,271.45686034,0.00022999,2]
[313773018,1707711455397,500.0,0.00022996,2]
[313773019,1707711455599,500.0,0.00022996,2]
[313773020,1707711455639,609.64,0.00022997,2]
[313773021,1707711455931,788.26,0.00022997,2]
[313773022,1707711456381,519.1,0.00022998,2]
[313773023,1707711457154,657.7,0.00022996,2]
[313773024,1707711459439,2577.85,0.00022998,2]
[313773025,1707711459501,899.27,0.00022997,2]
[313773026,1707711459559,217.16548827,0.00022999,2]
[313773027,1707711459744,727.58,0.00022998,2]
[313773028,1707711460113,500.0,0.00022996,2]
[313773029,1707711460689,537.41,0.00022996,2]
[313773030,1707711461532,500.0,0.00022998,2]
[313773031,1707711461733,500.0,0.00022996,2]
[313773032,1707711461847,3154.17,0.00022996,2]
[313773033,1707711462038,516.95,0.00022996,2]
[313773034,1707711462406,596.18,0.00022996,2]
[313773035,1707711462502,500.0,0.00022996,2]
[313773036,1707711463143,2497.12,0.00022997,2]
[313773037,1707711463934,217.77,0.00023,2]
[313773038,1707711464240,500.0,0.00022999,2]
[313773039,1707711464289,500.0,0.00022999,2]
[313773040,1707711464852,528.46591034,0.00022999,2]
[313773041,1707711464881,173.73239062,0.00022999,2]
[313773042,1707711464931,838.83,0.00022997,2]
[313773043,1707711467353,234.83818722,0.00022996,2]
[313773044,1707711467617,500.0,0.00022996,2]
[313773045,1707711468535,525.55696118,0.00022999,2]
[313773046,1707711469316,500.0,0.00022997,2]
[313773047,1707711469629,150.01,0.00022999,2]
[313773048,1707711470052,500.0,0.00022996,2]
[313773049,1707711470088,500.0,0.00022996,2]
[313773050,1707711470178,1246.84,0.00022998,2]
[313773051,1707711470562,1254.76,0.00022997,2]
[313773052,1707711470953,500.0,0.00022999,2]
[313773053,1707711471014,500.0,0.00022996,2]
[313773054,1707711471081,500.0,0.00022996,2]
[313773055,1707711471117,500.0,0.00022996,2]
[313773056,1707711471196,588.15,0.00022996,2]
[313773057,1707711472414,3187.07,0.00022997,2]
[313773058,1707711472969,500.0,0.00022996,2]
[313773059,1707711473504,500.0,0.00022996,2]
[313773060,1707711474620,150.01,0.00022999,2]
[313773061,1707711476460,500.0,0.00022996,2]
[313773062,1707711477831,500.0,0.00022996,2]
[313773063,1707711477989,541.05917631,0.00022999,2]
[313773064,1707711478292,638.37,0.00022999,2]
[313773065,1707711478338,172.9821635,0.00022996,2]
[313773066,1707711479026,500.0,0.00022996,2]
[313773067,1707711479604,338.71741755,0.00022996,2]
[313773068,1707711479742,150.01,0.00022999,2]
[313773069,1707711479951,606.49,0.00022996,2]
[313773070,1707711480032,568.93,0.00022997,2]
[313773071,1707711480068,500.0,0.00022996,2]
[313773072,1707711480400,807.84,0.00022998,2]
[313773073,1707711480431,1407.36,0.00022997,2]
[313773074,1707711480461,9141.75,0.00022997,2]
[313773075,1707711481608,500.0,0.00022996,2]
[313773076,1707711482139,500.0,0.00022996,2]
[313773077,1707711482371,4118.92,0.00022997,2]
[313773078,1707711482400,500.0,0.00022999,2]
[313773079,1707711482603,500.0,0.00022996,2]
[313773080,1707711483354,669.15,0.00022999,2]
[313773081,1707711483804,500.0,0.00022996,2]
[313773082,1707711483849,670.82,0.00022996,2]
[313773083,1707711484055,635.04,0.00022996,2]
[313773084,1707711484691,244.89956246,0.00022999,2]
[313773085,1707711487635,151.26782655,0.00022999,2]
[313773086,1707711487986,537.05536346,0.00022998,2]
[313773087,1707711489251,500.0,0.00022997,2]
[313773088,1707711489582,500.0,0.00022996,2]
[313773089,1707711489675,298.60088217,0.00022999,2]
[313773090,1707711489828,500.0,0.00022996,2]
[313773091,1707711491144,3837.64,0.00022997,2]
[313773092,1707711491388,500.0,0.00022997,2]
[313773093,1707711491760,517.80344196,0.00022999,2]
[313773094,1707711491879,500.0,0.00022998,2]
[313773095,1707711492107,500.0,0.00022998,2]
[313773096,1707711492153,500.0,0.00022999,2]
[313773097,1707711492371,417.33001186,0.00022999,2]
[313773098,1707711493571,4639.62,0.00022996,2]
[313773099,1707711493677,156.11520462,0.00022996,2]
[313773100,1707711494124,4238.15,0.00022996,2]
[313773101,1707711494255,542.8399491,0.00022999,2]
[313773102,1707711494792,774.57,0.00022997,2]
[313773103,1707711495548,500.0,0.00022996,2]
[313773104,1707711495603,164.19922835,0.00022913,2]
[313773105,1707711495923,500.0,0.00022996,2]
[313773106,1707711496514,500.0,0.00022998,2]
[313773107,1707711496567,537.79583244,0.00022999,2]
[313773108,1707711498217,500.0,0.00022997,2]
[313773109,1707711498363,513.75797565,0.00022996,2]
[313773110,1707711498493,553.80078902,0.00022999,2]
[313773111,1707711498529,25899.1382,0.00022896,2]
[313773112,1707711499311,565.09,0.00022996,2]
[313773113,1707711499908,559.08,0.00022996,2]
[313773114,1707711500346,644.11,0.00022998,2]
[313773115,1707711500441,500.0,0.00022999,2]
[313773116,1707711500581,1577.11,0.00022997,2]
[313773117,1707711500896,2892.6,0.00022997,2]
[313773118,1707711500926,1798.73,0.00022996,2]
[313773119,1707711502026,657.0,0.00022996,2]
[313773120,1707711503134,215.91630318,0.00023,2]
[313773121,1707711503542,1551.69,0.00022996,2]
[313773122,1707711503670,500.0,0.00022996,2]
[313773123,1707711503841,500.0,0.00022998,2]
[313773124,1707711505069,1505.29,0.00022997,2]
[313773125,1707711506388,500.0,0.00022996,2]
[313773126,1707711507062,500.0,0.00022997,2]
[313773127,1707711507142,500.0,0.00022999,2]
[313773128,1707711508334,539.1,0.00022996,2]
[313773129,1707711508721,500.0,0.00022996,2]
[313773130,1707711508964,500.0,0.00022998,2]
[313773131,1707711509546,2479.34,0.00022996,2]
[313773132,1707711509587,517.25290023,0.00022996,2]
[313773133,1707711509735,500.0,0.00022998,2]
[313773134,1707711509895,2176.38,0.00022997,2]
[313773135,1707711511040,500.0,0.00022999,2]
[313773136,1707711511086,500.0,0.00022996,2]
[313773137,1707711511360,212.87694586,0.00023,2]
[313773138,1707711511722,500.0,0.00022996,2]
[313773139,1707711511910,1594.43,0.00022997,2]
[313773140,1707711513084,686.82,0.00022997,2]
[313773141,1707711513368,2231.2,0.00022998,2]
[313773142,1707711513409,692.48,0.00022998,2]
[313773143,1707711513494,500.0,0.00022999,2]
[313773144,1707711514334,500.0,0.00022996,2]
[313773145,1707711514935,500.0,0.00022999,2]
[313773146,1707711515015,626.32327301,0.00023,2]
[313773147,1707711515352,155.0,0.00023,2]
[313773148,1707711515881,514.74316955,0.00022998,2]
[313773149,1707711516100,6323.8,0.00022997,2]
[313773150,1707711516133,155.0,0.00023,2]
[313773151,1707711516721,500.0,0.00022996,2]
[313773152,1707711517021,607.55,0.00022996,2]
[313773153,1707711517936,532.04181172,0.00022999,2]
[313773154,1707711518694,695.1,0.00022997,2]
[313773155,1707711519580,738.16,0.00022996,2]
[313773156,1707711519703,665.0,0.00022996,2]
[313773157,1707711519958,591.31,0.00022996,2]
[313773158,1707711520462,1047.19623077,0.00023,2]
[313773159,1707711521530,1862.12656085,0.00023,2]
[313773160,1707711521838,500.0,0.00022996,2]
[313773161,1707711521975,509.51676777,0.00022999,2]
[313773162,1707711522291,525.28,0.00022997,2]
[313773163,1707711522340,614.8681486,0.00022996,2]
[313773164,1707711523209,513.48656633,0.00022998,2]
[313773165,1707711523299,5863.67,0.00022997,2]
[313773166,1707711523997,726.78,0.00022996,2]
[313773167,1707711524046,500.0,0.00022999,2]
[313773168,1707711525768,4618.48,0.00022997,2]
[313773169,1707711526006,500.0,0.00022996,2]
[313773170,1707711526226,500.0,0.00022996,2]
[313773171,1707711527615,3950.24,0.00022997,2]
[313773172,1707711527667,500.0,0.00022998,2]
[313773173,1707711528633,500.0,0.00022996,2]
[313773174,1707711528668,566.32015051,0.00022999,2]
[313773175,1707711529969,500.0,0.00022996,2]
[313773176,1707711530984,609.93,0.00022996,2]
[313773177,1707711532797,1065.7,0.00022996,2]
[313773178,1707711532986,6836.9,0.00022996,2]
[313773179,1707711533451,1199.7413044,0.00022617,2]
[313773180,1707711533936,1647.5712506,0.00022997,2]
[313773181,1707711535604,705.67,0.00022998,2]
[313773182,1707711535702,500.0,0.00022999,2]
[313773183,1707711535819,644.71,0.00022996,2]
[313773184,1707711535995,500.0,0.00022998,2]
[313773185,1707711536083,1748.07,0.00022997,2]
[313773186,1707711536157,2015.74,0.00022996,2]
[313773187,1707711536249,500.0,0.00022996,2]
[313773188,1707711536475,522.32997001,0.00022996,2]
[313773189,1707711537204,528.10754799,0.00022999,2]
[313773190,1707711539455,500.0,0.00022999,2]
[313773191,1707711540120,562.04,0.00022996,2]
[313773192,1707711540455,500.0,0.00022996,2]
[313773193,1707711540777,500.0,0.00022996,2]
[313773194,1707711540878,500.0,0.00022998,2]
[313773195,1707711541833,403.0385019,0.00022999,2]
[313773196,1707711541888,975.68,0.00022997,2]
[313773197,1707711542869,256.8,0.00023,2]
[313773198,1707711543263,256.8,0.00023,2]
[313773199,1707711543937,528.64786129,0.00022996,2]
[313773200,1707711544110,522.32958649,0.00022998,2]
[313773201,1707711544360,500.0,0.00022999,2]
[313773202,1707711544398,542.34,0.00022996,2]
[313773203,1707711544623,6622.79,0.00022996,2]
[313773204,1707711545112,500.0,0.00022996,2]
[313773205,1707711545280,500.0,0.00022996,2]
[313773206,1707711546032,500.0,0.00022998,2]
[313773207,1707711547595,500.0,0.00022996,2]
[313773208,1707711547858,2161.06,0.00022996,2]
[313773209,1707711548190,500.0,0.00022996,2]
[313773210,1707711548933,1175.59,0.00022996,2]
[313773211,1707711551190,500.0,0.00022997,2]
[313773212,1707711551312,519.09,0.00022996,2]
[313773213,1707711552925,500.0,0.00022999,2]
[313773214,1707711553470,792.97,0.00022996,2]
[313773215,1707711553682,500.0,0.00022996,2]
[313773216,1707711554362,500.0,0.00022996,2]
[313773217,1707711555195,952.5,0.00022998,2]
[313773218,1707711555330,508.58615743,0.00022999,2]
[313773219,1707711555603,500.0,0.00022996,2]
[313773220,1707711556278,598.36,0.00022998,2]
[313773221,1707711556680,71308.5385558,0.00022997,2]
[313773222,1707711557335,500.0,0.00022999,2]
[313773223,1707711557435,500.0,0.00022996,2]
[313773224,1707711560905,500.0,0.00022998,2]
[313773225,1707711561233,500.0,0.00022997,2]
[313773226,1707711561611,500.0,0.00022996,2]
[313773227,1707711561816,500.0,0.00022996,2]
[313773228,1707711561846,500.0,0.00022996,2]
[313773229,1707711562312,3863.14,0.00022996,2]
[313773230,1707711563179,500.0,0.00022997,2]
[313773231,1707711563593,630.79,0.00022998,2]
[313773232,1707711564230,284.26879972,0.00022999,2]
[313773233,1707711566159,301.92825162,0.00022997,2]
[313773234,1707711567632,500.0,0.00022996,2]
[313773235,1707711567665,500.0,0.00022996,2]
[313773236,1707711568008,1381.52,0.00022997,2]
[313773237,1707711569129,510.55,0.00022996,2]
[313773238,1707711569188,521.47786981,0.00022999,2]
[313773239,1707711569748,500.0,0.00022996,2]
[313773240,1707711571815,1297.97,0.00022996,2]
[313773241,1707711571892,1222.2,0.00022996,2]
[313773242,1707711572311,1918.49,0.00022997,2]
[313773243,1707711573073,20586.97,0.00022997,2]
[313773244,1707711573511,370.60600342,0.00022996,2]
[313773245,1707711574750,500.0,0.00022996,2]
[313773246,1707711575095,500.0,0.00022999,2]
[313773247,1707711575131,1986.6,0.00022996,2]
[313773248,1707711575933,500.0,0.00022996,2]
[313773249,1707711576302,772.69,0.00022996,2]
[313773250,1707711578830,500.0,0.00022996,2]
[313773251,1707711579393,606.61,0.00022998,2]
[313773252,1707711579865,508.26026208,0.00022996,2]
[313773253,1707711580347,500.0,0.00022996,2]
[313773254,1707711580461,500.0,0.00022996,2]
[313773255,1707711584368,891.73,0.00022997,2]
[313773256,1707711584406,1942.8404604,0.00022997,2]
[313773257,1707711584656,769.04,0.00022997,2]
[313773258,1707711584892,867.95,0.00022996,2]
[313773259,1707711585413,572.42512167,0.00022999,2]
[313773260,1707711586108,500.0,0.00022996,2]
[313773261,1707711586440,500.0,0.00022996,2]
[313773262,1707711586664,500.0,0.00022996,2]
[313773263,1707711586878,516.27,0.00022996,2]
[313773264,1707711587144,2803.33,0.00022997,2]
[313773265,1707711587566,1919.29,0.00022996,2]
[313773266,1707711588127,185.11,0.00023,2]
[313773267,1707711589975,500.0,0.00022996,2]
[313773268,1707711590530,654.0,0.00022998,2]
[313773269,1707711590784,500.0,0.00022996,2]
[313773270,1707711591010,508.91526108,0.00022996,2]
[313773271,1707711591605,500.0,0.00022996,2]
[313773272,1707711591684,515.94971427,0.00022998,2]
[313773273,1707711593247,500.0,0.00022996,2]
[313773274,1707711593285,500.0,0.00022999,2]
[313773275,1707711593988,746.41,0.00022996,2]
[313773276,1707711594176,500.0,0.00022998,2]
[313773277,1707711594246,934.48,0.00022997,2]
[313773278,1707711594655,500.0,0.00022996,2]
[313773279,1707711596097,1887.5,0.00022997,2]
[313773280,1707711596136,500.0,0.00022998,2]
[313773281,1707711596466,500.0,0.00022996,2]
[313773282,1707711596513,500.0,0.00022998,2]
[313773283,1707711597848,500.0,0.00022996,2]
[313773284,1707711597918,766.51,0.00022999,2]
[313773285,1707711599136,532.01,0.00022996,2]
[313773286,1707711599253,500.0,0.00022998,2]
[313773287,1707711599642,2329.86,0.00022996,2]
[313773288,1707711600008,1077.62,0.00022996,2]
[313773289,1707711600191,3020.4,0.00022996,2]
[313773290,1707711600273,1484.47,0.00022998,2]
[313773291,1707711600319,865.22,0.00022996,2]
[313773292,1707711601754,500.0,0.00022998,2]
[313773293,1707711605554,1035.68,0.00022997,2]
[313773294,1707711605939,539.72989727,0.00022996,2]
[313773295,1707711606135,1011.16,0.00022997,2]
[313773296,1707711606885,200.0,0.00023,2]
[313773297,1707711607803,500.0,0.00022996,2]
[313773298,1707711609291,500.0,0.00022996,2]
[313773299,1707711610002,500.0,0.00022996,2]
[313773300,1707711610282,1010.56,0.00022998,2]
[313773301,1707711610319,500.0,0.00022996,2]
[313773302,1707711612376,500.0,0.00022996,2]
[313773303,1707711612408,827.55,0.00022996,2]
[313773304,1707711612552,2740.19,0.00022996,2]
[313773305,1707711612888,8172.65,0.00022996,2]
[313773306,1707711613091,550.83355906,0.00022996,2]
[313773307,1707711614850,572.70976422,0.00022999,2]
[313773308,1707711615277,500.0,0.00022998,2]
[313773309,1707711615458,500.0,0.00022997,2]
[313773310,1707711616414,500.0,0.00022999,2]